bitfinex-derivatives/quotes_SOLF0:USTF0_20240907
["timestamp","ask_amount","ask_price","bid_price","bid_amount"]
[1725668010222,3.993,125.25,125.24,3.48]
[1725668010526,3.95727465,125.26,125.24,3.48]
[1725668010726,1.4059,125.35,125.24,3.48]
[1725668010927,3.9926,125.27,125.24,3.48]
[1725668011127,3.93292215,125.26,125.24,3.48]
[1725668011429,3.9926,125.27,125.24,3.48]
[1725668011729,4.04032886,125.26,125.24,3.48]
[1725668012528,4.04032886,125.26,125.24,7.4732]
[1725668013230,1.4059,125.35,125.24,7.4732]
[1725668013430,1.16545146,125.34,125.24,7.4732]
[1725668013831,23.95,125.32,125.24,3.48]
[1725668014128,1.16574665,125.31,125.24,3.48]
[1725668014322,3.993,125.25,125.24,3.48]
[1725668014529,32.03687955,125.25,125.24,1.3263]
[1725668014727,32.03687955,125.25,125.24,0.0547]
[1725668022830,8.08687955,125.25,125.24,0.0547]
[1725668023132,4.09387955,125.25,125.24,0.0547]
[1725668023338,344.0,125.31,125.24,0.0547]
[1725668023536,20.55389925,125.32,125.24,0.0547]
[1725668023831,23.98,125.31,125.24,0.0547]
[1725668024036,23.98,125.3,125.24,0.0547]
[1725668025031,23.98,125.35,125.24,0.0547]
[1725668025231,1.16562891,125.34,125.24,0.0547]
[1725668025435,3.9922,125.28,125.24,0.0547]
[1725668025632,3.90496355,125.27,125.24,0.0547]
[1725668026844,7.89726355,125.27,125.24,0.0547]
[1725668027037,3.9923,125.27,125.24,0.0547]
[1725668027541,4.05270658,125.26,125.24,0.0547]
[1725668028343,23.98,125.35,125.21,3.9941]
[1725668028543,3.9929,125.26,125.22,3.9939]
[1725668028735,8.03722167,125.26,125.22,3.9939]
[1725668028939,3.9929,125.26,125.22,3.9939]
[1725668029344,4.0866455,125.26,125.2,4.1599]
[1725668029540,23.98,125.35,125.2,4.1599]
[1725668029850,3.9925,125.27,125.23,3.9936]
[1725668030145,3.89658754,125.26,125.23,3.9936]
[1725668030745,7.88928754,125.26,125.22,3.9938]
[1725668030946,23.98,125.35,125.2,4.1599]
[1725668031142,1.16577576,125.34,125.2,4.1599]
[1725668031337,3.9932,125.25,125.2,4.1599]
[1725668031541,7.90477797,125.25,125.2,4.1599]
[1725668031749,7.90477797,125.25,125.21,3.9942]
[1725668032049,3.9933,125.24,125.2,4.1599]
[1725668032745,3.9933,125.24,125.2,8.1542]
[1725668033641,3.91157797,125.25,125.2,4.1599]
[1725668033951,23.98,125.32,125.2,4.1599]
[1725668034153,1.16590661,125.31,125.2,8.1544]
[1725668034347,23.98,125.3,125.2,8.1544]
[1725668035450,3.9932,125.25,125.2,8.1544]
[1725668036049,3.9933,125.24,125.2,8.1544]
[1725668036250,4.07484451,125.25,125.21,3.9942]
[1725668036452,23.98,125.32,125.21,3.9942]
[1725668036750,1.16587433,125.31,125.2,8.1543]
[1725668037048,23.98,125.3,125.2,2.8327]
[1725668037455,1.16594727,125.29,125.2,6.8272]
[1725668038355,28.06676195,125.3,125.2,6.8272]
[1725668038655,3.9931,125.25,125.2,6.8272]
[1725668040250,3.9934,125.24,125.2,6.8272]
[1725668040853,28.06676195,125.3,125.2,2.8327]
[1725668041062,4.08676195,125.3,125.21,1.4261]
[1725668041351,109.88275543,125.36,125.21,1.4261]
[1725668041556,1.16570023,125.35,125.21,1.4261]
[1725668042057,3.992,125.28,125.21,1.4261]
[1725668042251,4.03203378,125.27,125.21,1.4261]
[1725668042447,23.98,125.35,125.21,1.4261]
[1725668042754,3.9919,125.29,125.24,3.9931]
[1725668042951,7.96082716,125.29,125.24,3.9931]
[1725668044058,3.96892716,125.29,125.25,3.9929]
[1725668044247,23.98,125.35,125.21,1.4261]
[1725668044452,1.16559251,125.34,125.21,1.4261]
[1725668044859,1.16559251,125.34,125.24,3.9931]
[1725668045459,23.98,125.35,125.23,3.9934]
[1725668045658,1.16564084,125.34,125.23,3.9934]
[1725668045859,3.9921,125.28,125.23,3.9934]
[1725668046059,7.89778356,125.28,125.23,3.9934]
[1725668048160,3.9923,125.27,125.23,3.9934]
[1725668049559,3.90568356,125.28,125.21,1.4261]
[1725668049762,23.98,125.34,125.21,1.4261]
[1725668050058,3.9929,125.26,125.22,3.9937]
[1725668050254,8.00040846,125.26,125.22,3.9937]
[1725668051661,3.993,125.25,125.22,3.9937]
[1725668051867,3.993,125.25,125.21,1.4261]
[1725668051868,23.98,125.34,125.23,3.9936]
[1725668052157,3.9924,125.27,125.21,1.4261]
[1725668052356,4.0027167,125.26,125.23,3.9934]
[1725668052863,3.9924,125.27,125.23,3.9934]
[1725668053059,3.9924,125.27,125.24,3.9932]
[1725668053262,3.9924,125.27,125.21,1.4261]
[1725668053263,3.9921,125.28,125.21,1.4261]
[1725668053464,8.01997679,125.28,125.21,1.4261]
[1725668053662,3.9921,125.28,125.21,1.4261]
[1725668053864,7.93291778,125.28,125.21,1.4261]
[1725668054663,7.93291778,125.28,125.25,3.9927]
[1725668057966,23.98,125.34,125.21,1.4261]
[1725668058567,23.98,125.34,125.26,3.9924]
[1725668059163,3.9918,125.29,125.26,3.9924]
[1725668059471,3.9918,125.29,125.25,3.9928]
[1725668060569,3.9921,125.28,125.25,3.9928]
[1725668062363,3.9918,125.29,125.25,3.9928]
[1725668062762,23.98,125.34,125.21,1.4261]
[1725668063164,1.16553506,125.33,125.21,1.4261]
[1725668064165,3.9925,125.27,125.23,3.9934]
[1725668064362,8.0232461,125.27,125.23,3.9934]
[1725668067075,8.0232461,125.27,125.24,3.9933]
[1725668068979,4.0307461,125.27,125.21,1.4261]
[1725668069175,23.98,125.27,125.21,1.4261]
[1725668069375,3.9935,125.24,125.21,1.4261]
[1725668070073,3.9937,125.23,125.21,1.4261]
[1725668070779,3.9937,125.23,125.2,6.8271]
[1725668071174,3.9937,125.23,125.2,2.8327]
[1725668071579,3.9937,125.23,125.19,3.9947]
[1725668071983,3.994,125.22,125.18,3.995]
[1725668072281,3.994,125.22,125.17,2.8415]
[1725668073183,3.994,125.22,125.19,3.9948]
[1725668073387,3.994,125.22,125.17,2.8415]
[1725668073584,3.9943,125.21,125.17,2.8415]
[1725668074388,3.9943,125.21,125.18,3.9951]
[1725668075691,3.9946,125.2,125.17,6.8369]
[1725668075986,3.9946,125.2,125.17,2.8415]
[1725668076186,3.9943,125.21,125.17,2.8415]
[1725668077387,4.02740701,125.2,125.08,7.9965]
[1725668077582,23.98,125.25,125.09,5.57059722]
[1725668077778,23.98,125.25,125.15,3.9959]
[1725668077985,3.9951,125.19,125.15,3.9959]
[1725668078386,3.9952,125.18,125.15,3.9959]
[1725668079390,7.9085744,125.18,125.14,3.9963]
[1725668079989,3.9956,125.17,125.14,3.9963]
[1725668080889,8.08598326,125.17,125.14,3.9963]
[1725668081089,3.9956,125.17,125.14,3.9963]
[1725668081685,7.96251658,125.17,125.14,3.9963]
[1725668084397,3.9953,125.18,125.15,3.9961]
[1725668085195,7.97600027,125.17,125.14,3.9963]
[1725668085394,3.98050027,125.17,125.09,4.1025]
[1725668085600,255.0153971,125.25,125.09,4.1025]
[1725668085796,3.9963,125.15,125.09,4.1025]
[1725668085997,7.91047353,125.15,125.09,4.1025]
[1725668086597,7.91047353,125.15,125.12,3.997]
[1725668086899,3.9966,125.14,125.09,4.1025]
[1725668087100,3.91417353,125.15,125.09,4.1025]
[1725668087293,23.98,125.23,125.11,3.9971]
[1725668087498,1.1667485,125.22,125.11,3.9971]
[1725668087997,23.98,125.18,125.09,2.6993]
[1725668088196,28.04760786,125.18,125.09,1.3534]
[1725668088389,3.997,125.13,125.09,5.3512]
[1725668089900,3.997,125.13,125.09,3.9978]
[1725668090100,3.9972,125.12,125.09,3.9978]
[1725668091202,23.98,125.12,125.07,3.9986]
[1725668092103,23.98,125.12,125.04,5.3366]
[1725668092397,23.98,125.17,125.04,1.3371]
[1725668092599,1.16756398,125.16,125.04,1.3371]
[1725668092801,23.98,125.12,125.05,3.9993]
[1725668093302,3.9983,125.09,125.05,3.9993]
[1725668093694,4.04661984,125.09,125.04,1.3371]
[1725668093901,3.9981,125.09,125.04,1.3371]
[1725668094096,8.03352476,125.09,125.04,1.3371]
[1725668094293,4.03542476,125.09,125.04,1.3371]
[1725668094495,23.98,125.12,125.04,1.3371]
[1725668094698,3.9986,125.08,125.04,1.3371]
[1725668094900,3.93706803,125.07,125.04,5.3365]
[1725668095101,23.98,125.11,125.0,1.3058]
[1725668095394,23.98,125.11,125.01,1.3622]
[1725668095996,3.9984,125.08,125.04,3.9996]
[1725668096193,7.94840511,125.08,125.04,3.9996]
[1725668097298,3.95000511,125.08,125.01,1.3622]
[1725668097499,23.98,125.15,125.01,1.3622]
[1725668097708,1.16764675,125.14,125.01,1.3622]
[1725668098598,3.9979,125.1,125.06,3.9988]
[1725668098796,4.09318152,125.09,125.06,3.9988]
[1725668099003,23.98,125.15,125.01,1.3622]
[1725668099311,3.9982,125.09,125.01,1.3622]
[1725668099501,4.0367928,125.08,125.01,1.3622]
[1725668100201,3.998,125.1,125.06,3.9989]
[1725668100402,23.98,125.15,125.01,1.3622]
[1725668100599,23.98,125.15,125.09,3.9978]
[1725668100907,3.9971,125.13,125.09,3.9978]
[1725668101202,23.98,125.15,125.08,3.9982]
[1725668101399,23.98,125.15,125.01,131.73622041]
[1725668101808,23.98,125.15,125.07,3.9985]
[1725668102203,23.98,125.12,125.07,3.9985]
[1725668103012,3.9978,125.1,125.07,3.9985]
[1725668104313,107.56533931,125.16,125.07,4.07941341]
[1725668104614,3.91587735,125.16,125.08,2.8133]
[1725668104803,3.996,125.16,125.12,3.9969]
[1725668105008,3.95785473,125.15,125.12,3.9969]
[1725668105807,20.36987364,125.25,125.09,1.4015]
[1725668105808,23.98,125.23,125.09,1.4015]
[1725668106010,1.16678508,125.22,125.09,1.4015]
[1725668106203,3.9954,125.18,125.14,3.9964]
[1725668106408,28.06250635,125.18,125.09,1.4015]
[1725668106806,23.98,125.17,125.09,1.4015]
[1725668107313,23.98,125.16,125.09,1.4015]
[1725668108417,3.9963,125.15,125.11,3.9974]
[1725668109808,3.9965,125.14,125.1,3.9976]
[1725668110013,3.95578996,125.17,125.1,3.9976]
[1725668110214,23.98,125.24,125.1,3.9976]
[1725668110408,3.9966,125.14,125.1,3.9976]
[1725668110608,7.95199022,125.14,125.11,3.9974]
[1725668110910,3.95539022,125.14,125.11,3.9974]
[1725668111106,23.98,125.24,125.13,3.9968]
[1725668111312,1.16692208,125.23,125.13,3.9968]
[1725668111515,3.9958,125.17,125.13,3.9968]
[1725668111717,3.95938758,125.17,125.12,3.997]
[1725668111913,3.9958,125.16,125.12,3.997]
[1725668113223,7.90393033,125.17,125.13,3.9967]
[1725668113424,3.9957,125.17,125.13,3.9967]
[1725668113720,3.96378812,125.17,125.11,3.9973]
[1725668113916,23.98,125.24,125.08,2.8133]
[1725668114118,1.16699778,125.23,125.08,2.8133]
[1725668114516,1.16699854,125.22,125.08,2.8133]
[1725668114715,1.16699854,125.23,125.08,2.8133]
[1725668114920,1.16699854,125.22,125.08,2.8133]
[1725668115114,23.98,125.24,125.08,2.8133]
[1725668115115,1.16699854,125.21,125.08,2.8133]
[1725668115321,1.16699854,125.2,125.08,2.8133]
[1725668115515,3.9967,125.14,125.1,3.9976]
[1725668115712,7.89524951,125.14,125.1,3.9976]
[1725668116522,3.9968,125.13,125.09,3.9979]
[1725668117722,3.9972,125.12,125.08,6.8116]
[1725668118516,3.9975,125.11,125.08,1.3968]
[1725668118717,3.9975,125.11,125.07,5.4142]
[1725668119724,3.9975,125.11,125.08,3.9981]
[1725668120127,3.89854951,125.14,125.08,3.9981]
[1725668120128,3.9973,125.12,125.08,3.9981]
[1725668120425,3.9973,125.12,125.09,3.9981]
[1725668121020,3.9973,125.12,125.08,3.9982]
[1725668121021,8.06446702,125.12,125.08,3.9982]
[1725668121221,3.9973,125.12,125.08,3.9982]
[1725668121420,3.9973,125.12,125.09,3.998]
[1725668121618,7.995541,125.12,125.09,3.998]
[1725668122521,23.98,125.2,125.07,1.4156]
[1725668122718,1.16722073,125.19,125.08,2.8023]
[1725668122919,23.98,125.24,125.08,2.8023]
[1725668123125,3.9954,125.18,125.14,3.9963]
[1725668123324,4.08421178,125.17,125.14,3.9963]
[1725668124226,4.08421178,125.17,125.08,2.8023]
[1725668124627,4.08421178,125.17,125.14,3.9963]
[1725668125017,8.07971178,125.17,125.14,3.9963]
[1725668125217,3.9955,125.17,125.14,3.9963]
[1725668125623,23.98,125.24,125.16,3.9958]
[1725668125924,1.16656085,125.23,125.08,2.8023]
[1725668127529,3.9957,125.17,125.13,3.9965]
[1725668127827,3.89680557,125.16,125.13,3.9965]
[1725668128628,3.89680557,125.16,125.14,3.9965]
[1725668129831,3.89680557,125.16,125.13,3.9966]
[1725668130843,7.89270557,125.16,125.13,3.9966]
[1725668131130,4.04268599,125.16,125.12,3.997]
[1725668131330,23.98,125.24,125.08,2.8023]
[1725668131520,1.16705417,125.23,125.1,3.9976]
[1725668132027,3.9967,125.14,125.1,3.9976]
[1725668132227,3.94068476,125.13,125.1,3.9976]
[1725668132434,250.98,125.24,125.1,3.9976]
[1725668132621,3.9968,125.13,125.1,3.9976]
[1725668132825,8.04660404,125.13,125.1,3.9976]
[1725668133021,3.9968,125.13,125.1,3.9976]
[1725668133227,3.9972,125.12,125.09,3.9979]
[1725668134737,3.93708742,125.13,125.01,130.37402041]
[1725668134930,23.98,125.19,125.02,4.0571]
[1725668135130,1.16753145,125.18,125.02,4.0571]
[1725668135444,23.98,125.09,125.02,4.0571]
[1725668135730,27.91404004,125.09,125.02,2.6404]
[1725668135936,23.98,125.08,125.02,2.6404]
[1725668136937,3.93404004,125.09,125.02,2.6404]
[1725668137133,3.9995,125.05,125.02,2.6404]
[1725668137442,8.05906474,125.05,125.02,2.6404]
[1725668137629,3.9995,125.05,125.02,2.6404]
[1725668138133,7.92605703,125.05,125.02,2.6404]
[1725668140542,3.92655703,125.05,125.0,1.3601]
[1725668140836,23.98,125.14,125.0,1.3601]
[1725668141038,1.16799961,125.13,125.0,1.3601]
[1725668141341,23.98,125.09,125.0,5.361]
[1725668141537,27.96927861,125.09,125.0,5.361]
[1725668142036,3.9996,125.05,125.0,5.361]
[1725668142236,23.98,125.08,125.0,5.361]
[1725668142741,3.9997,125.04,125.0,5.361]
[1725668142941,23.98,125.08,125.01,4.0006]
[1725668143342,3.9989,125.07,125.0,1.3601]
[1725668143543,23.98,125.14,125.0,1.3601]
[1725668143838,3.9982,125.09,125.0,1.3601]
[1725668144043,3.9982,125.09,125.04,3.9995]
[1725668144044,3.90806887,125.08,125.04,3.9995]
[1725668144940,7.90676887,125.08,125.04,3.9995]
[1725668147246,3.9988,125.07,125.04,3.9995]
[1725668147745,3.9988,125.07,125.03,3.9999]
[1725668148146,7.90646887,125.08,125.0,1.3601]
[1725668148345,23.98,125.14,125.0,1.3601]
[1725668149447,3.9976,125.11,125.07,3.9985]
[1725668149647,3.91609531,125.1,125.03,3.90849668]
[1725668149846,3.91609531,125.1,125.04,2.6983]
[1725668150040,3.91609531,125.1,125.08,3.9982]
[1725668150345,3.9973,125.12,125.08,3.9982]
[1725668150539,23.98,125.14,125.08,3.9982]
[1725668151239,23.98,125.14,125.05,1.4312]
[1725668151446,23.98,125.14,125.07,3.9986]
[1725668151844,3.9971,125.12,125.07,3.9986]
[1725668152845,3.9971,125.12,125.05,1.4312]
[1725668153043,3.9971,125.12,125.09,3.998]
[1725668153240,112.47320578,125.15,125.05,1.4312]
[1725668153446,112.47320578,125.15,125.12,3.997]
[1725668153744,112.47320578,125.15,125.05,1.4312]
[1725668154135,28.07754196,125.18,125.05,1.4312]
[1725668154339,3.9965,125.15,125.05,1.4312]
[1725668154544,4.07635467,125.14,125.1,3.9975]
[1725668154947,8.07305467,125.14,125.05,1.4312]
[1725668155147,4.07635467,125.14,125.05,1.4312]
[1725668155647,3.9966,125.14,125.1,3.9974]
[1725668155850,8.0465705,125.14,125.1,3.9974]
[1725668156340,3.997,125.13,125.1,3.9974]
[1725668156646,28.0299705,125.14,125.05,1.4312]
[1725668156848,23.98,125.14,125.05,1.4312]
[1725668157042,3.9976,125.11,125.05,1.4312]
[1725668157843,3.9976,125.11,125.08,3.9984]
[1725668158041,3.93563908,125.12,125.05,1.4312]
[1725668158243,23.98,125.2,125.05,1.4312]
[1725668158542,1.16748125,125.19,125.05,1.4312]
[1725668158941,3.9976,125.11,125.07,3.9985]
[1725668159245,3.97065326,125.1,125.07,3.9985]
[1725668160346,23.98,125.2,125.05,1.4312]
[1725668160750,3.9971,125.12,125.05,1.4312]
[1725668161743,3.9971,125.12,125.08,3.9982]
[1725668162945,3.9974,125.11,125.08,3.9982]
[1725668164852,3.9974,125.11,125.07,3.9986]
[1725668165255,3.9974,125.11,125.08,3.9984]
[1725668165854,23.98,125.13,125.05,1.4312]
[1725668166050,4.0942714,125.12,125.05,1.4312]
[1725668166256,23.98,125.13,125.05,1.4312]
[1725668166750,3.9976,125.11,125.07,3.9986]
[1725668167152,3.9976,125.11,125.05,1.4312]
[1725668167548,3.9978,125.1,125.05,1.4312]
[1725668167748,4.0874019,125.12,125.05,1.4312]
[1725668167749,23.98,125.12,125.05,1.4312]
[1725668167949,28.01022705,125.12,125.05,1.4312]
[1725668168254,28.01022705,125.12,125.05,5.4303]
[1725668168647,3.9984,125.08,125.05,3.9991]
[1725668168850,28.01022705,125.12,125.01,155.7102465]
[1725668169048,28.01022705,125.12,125.0,2.8267]
[1725668169446,3.9994,125.05,125.02,4.0001]
[1725668169655,28.01022705,125.12,125.0,2.8267]
[1725668170448,3.9999,125.04,125.0,6.8275]
[1725668170652,7.92173523,125.04,125.0,6.8275]
[1725668170856,3.92183523,125.04,125.0,6.8275]
[1725668171150,28.01022705,125.12,125.0,6.8275]
[1725668171353,28.01022705,125.12,125.01,4.0005]
[1725668171952,3.9997,125.04,125.01,4.0005]
[1725668173350,3.9997,125.04,125.0,6.8275]
[1725668173551,28.02104238,125.05,124.89,8.0086]
[1725668173757,23.98,125.05,124.9,4.0532]
[1725668174051,4.0008,125.01,124.97,4.0017]
[1725668174258,28.03536218,125.05,124.95,4.09616381]
[1725668174558,28.03536218,125.05,124.96,4.0532]
[1725668174752,4.0005,125.02,124.98,4.0013]
[1725668175744,4.05536218,125.05,124.96,4.0532]
[1725668175944,23.98,125.08,124.96,4.0532]
[1725668176656,27.98816029,125.08,124.96,4.0532]
[1725668177957,4.0008,125.01,124.97,4.0016]
[1725668178562,4.001,125.0,124.97,4.0016]
[1725668178857,4.08874461,125.01,124.98,4.0016]
[1725668179058,27.98816029,125.08,124.98,4.0016]
[1725668180360,23.98,125.04,124.98,4.0016]
[1725668180856,4.0006,125.02,124.98,4.0016]
[1725668181050,4.02865002,125.01,124.98,4.0016]
[1725668181554,4.0007,125.01,124.98,4.0016]
[1725668181759,23.98,125.03,124.97,4.0018]
[1725668182061,3.9394179,125.03,124.96,4.0532]
[1725668182260,23.98,125.09,124.96,4.0532]
[1725668182463,1.1684573,125.08,124.98,4.0013]
[1725668182658,4.0005,125.02,124.98,4.0013]
[1725668182958,8.03755304,125.02,124.98,4.0013]
[1725668183154,23.98,125.02,124.97,4.0018]
[1725668183354,23.98,125.09,124.96,2.6611]
[1725668183554,1.1684697,125.08,124.96,2.6611]
[1725668184162,4.0006,125.02,124.98,4.0015]
[1725668184365,8.08775265,125.02,124.98,4.0015]
[1725668184660,4.0001,125.03,124.99,4.0011]
[1725668185560,4.03873425,125.02,124.99,4.0011]
[1725668186163,8.03913425,125.02,124.99,4.0011]
[1725668186365,23.98,125.09,125.0,4.0009]
[1725668186566,23.98,125.13,124.97,1.3128]
[1725668186763,3.9983,125.09,124.97,1.3128]
[1725668186964,23.98,125.13,124.97,1.3128]
[1725668187565,23.98,125.13,125.05,3.9991]
[1725668187753,23.98,125.12,125.05,3.9991]
[1725668188065,3.998,125.1,125.01,4.02057045]
[1725668188261,3.95333416,125.12,125.02,2.6638]
[1725668188462,3.9974,125.11,125.03,1.3105]
[1725668188662,4.07820156,125.1,125.03,1.3105]
[1725668188857,4.07820156,125.1,125.07,3.9984]
[1725668189059,3.9985,125.08,125.02,2.6638]
[1725668189460,3.9985,125.08,125.04,3.9995]
[1725668190460,7.9692236,125.08,125.04,3.9995]
[1725668190962,3.9989,125.07,125.03,3.9999]
[1725668191162,27.9507236,125.08,125.02,2.6638]
[1725668191865,3.9707236,125.08,124.93,3.93190071]
[1725668192060,3.9707236,125.08,124.88,237.0095]
[1725668192061,23.98,125.12,124.94,4.0599]
[1725668192258,3.9999,125.04,125.0,4.0009]
[1725668192462,3.9999,125.04,124.94,4.0599]
[1725668192860,3.9999,125.04,125.0,4.0006]
[1725668195766,3.9999,125.04,125.01,4.0006]
[1725668196170,3.9999,125.04,124.94,4.0599]
[1725668196472,4.0,125.03,124.99,4.001]
[1725668197565,4.0,125.03,125.0,4.0009]
[1725668197765,4.0003,125.02,124.94,4.0599]
[1725668198166,4.0003,125.02,124.98,4.0014]
[1725668198671,23.98,125.03,124.97,4.0017]
[1725668198864,4.02751679,125.05,124.94,4.0599]
[1725668198865,28.00751679,125.05,124.94,4.0599]
[1725668199172,4.0003,125.02,124.94,4.0599]
[1725668199471,3.96654493,125.02,124.94,4.0599]
[1725668199672,4.0007,125.01,124.94,4.0599]
[1725668200265,4.0007,125.01,124.98,4.0015]
[1725668201169,23.98,125.01,124.88,8.0095]
[1725668201372,23.98,125.01,124.89,4.0332]
[1725668202272,3.91292134,125.05,124.89,4.0332]
[1725668202472,23.98,125.06,124.89,4.0332]
[1725668202770,23.98,125.06,124.97,4.0018]
[1725668202771,4.0007,125.01,124.97,4.0018]
[1725668203468,4.001,125.0,124.97,4.0018]
[1725668203667,27.99688836,125.06,124.97,4.0018]
[1725668205271,4.0012,125.0,124.96,4.0021]
[1725668205465,4.0012,125.0,124.94,2.7386]
[1725668205466,27.99688836,125.06,124.94,2.7386]
[1725668205671,1.16880058,125.05,124.89,1.2946]
[1725668205876,4.0021,124.97,124.93,4.003]
[1725668206369,3.95669001,124.98,124.93,4.003]
[1725668206565,27.99688836,125.06,124.93,4.003]
[1725668206566,23.98,125.02,124.93,4.003]
[1725668207478,23.98,124.99,124.93,4.003]
[1725668207679,4.06396294,124.98,124.9,2.6028]
[1725668207980,23.98,125.02,124.9,2.6028]
[1725668208170,23.98,125.02,124.94,4.0026]
[1725668208566,23.98,125.05,124.94,4.0026]
[1725668208767,4.0019,124.98,124.94,4.0026]
[1725668208967,4.05307972,124.98,124.93,4.003]
[1725668209167,4.0022,124.97,124.93,4.003]
[1725668209376,4.03626694,124.97,124.9,2.6028]
[1725668209568,28.04829128,125.05,124.92,4.0033]
[1725668209774,4.0024,124.96,124.92,4.0033]
[1725668210079,4.0024,124.96,124.9,2.6028]
[1725668210377,4.0024,124.96,124.92,4.0032]
[1725668211177,4.03026238,124.97,124.91,4.0036]
[1725668211178,28.01026238,124.97,124.91,4.0036]
[1725668211480,23.98,124.98,124.9,2.6028]
[1725668211678,27.89537509,124.98,124.9,2.6028]
[1725668212181,3.91537509,124.98,124.9,2.6028]
[1725668212382,4.0026,124.95,124.92,4.0033]
[1725668212783,3.97701921,124.98,124.92,4.0033]
[1725668212985,4.0025,124.96,124.93,4.0032]
[1725668213779,4.0026,124.95,124.92,4.0033]
[1725668214173,3.92057067,124.97,124.9,2.6028]
[1725668214377,23.98,125.03,124.9,2.6028]
[1725668214981,4.0024,124.96,124.9,2.6028]
[1725668215587,4.0024,124.96,124.93,4.0032]
[1725668215782,4.0021,124.97,124.9,2.6028]
[1725668216083,4.04427303,124.98,124.93,4.0029]
[1725668216282,4.0022,124.97,124.93,4.0029]
[1725668216580,8.04086877,124.97,124.93,4.0029]
[1725668216882,4.0022,124.97,124.93,4.0029]
[1725668217076,4.0022,124.96,124.93,4.0029]
[1725668218485,4.0026,124.95,124.92,4.0034]
[1725668220178,4.0026,124.95,124.9,2.6028]
[1725668220179,4.003,124.94,124.91,4.0037]
[1725668220385,28.00705995,124.97,124.91,4.0037]
[1725668220686,23.98,124.93,124.77,8.0161]
[1725668220883,23.98,124.93,124.83,1.4247]
[1725668221082,4.0044,124.9,124.86,4.0053]
[1725668221382,4.0044,124.9,124.84,1.3324]
[1725668221383,27.91698479,124.93,124.84,1.3324]
[1725668221679,27.91698479,124.93,124.8,1.3197]
[1725668221680,23.98,124.88,124.8,1.3197]
[1725668221881,23.98,124.9,124.8,5.2737834]
[1725668222183,4.0055,124.86,124.82,4.0065]
[1725668222484,4.03060887,124.88,124.82,4.0065]
[1725668222686,227.0,124.97,124.82,4.0065]
[1725668222887,227.0,124.97,124.8,1.3197]
[1725668222888,1.1691438,124.96,124.8,5.3268]
[1725668223089,1.1691438,124.96,124.8,1.3197]
[1725668223382,4.0056,124.86,124.8,1.3197]
[1725668223683,250.98,124.95,124.78,2.6621]
[1725668223882,4.006,124.85,124.78,2.6621]
[1725668224086,8.06305223,124.85,124.8,4.0072]
[1725668224281,4.006,124.85,124.78,2.6621]
[1725668224478,4.006,124.85,124.8,4.0073]
[1725668224683,7.9516696,124.85,124.8,4.0073]
[1725668224883,4.0055,124.86,124.78,2.6621]
[1725668225079,4.0055,124.86,124.82,4.0067]
[1725668225280,250.98,124.95,124.79,1.3621]
[1725668225481,4.0052,124.87,124.79,1.3621]
[1725668225681,4.0052,124.87,124.82,4.0064]
[1725668226184,4.0052,124.87,124.83,4.0064]
[1725668226581,4.0052,124.87,124.79,1.3621]
[1725668226784,4.0046,124.89,124.79,1.3621]
[1725668227489,4.0046,124.89,124.84,4.0058]
[1725668227697,4.0046,124.89,124.79,1.3621]
[1725668228084,4.0046,124.89,124.85,4.0056]
[1725668230187,4.0052,124.87,124.79,1.3621]
[1725668230403,4.04984461,124.9,124.79,1.3621]
[1725668230593,23.98,124.92,124.79,1.3621]
[1725668230794,3.98910269,124.91,124.79,1.3621]
[1725668230996,118.15979275,124.98,124.79,1.3621]
[1725668231288,4.0037,124.92,124.79,1.3621]